bitfinex-derivatives/quotes_ETHF0:USTF0_20230106
["timestamp","ask_amount","ask_price","bid_price","bid_amount"]
[1672998835996,3.00567301,1247.7,1247.6,18.79190537]
[1672998837896,3.00567301,1247.7,1247.6,17.3710477]
[1672998838837,6.21347301,1247.7,1247.6,17.3710477]
[1672998839045,3.00567301,1247.7,1247.6,17.3710477]
[1672998839257,6.21347301,1247.7,1247.6,17.3710477]
[1672998839467,6.21347301,1247.7,1247.6,18.79185216]
[1672998840623,3.00567301,1247.7,1247.6,18.79185216]
[1672998840835,6.21347301,1247.7,1247.6,18.79185216]
[1672998841355,3.00567301,1247.7,1247.6,18.79185216]
[1672998841565,6.21347301,1247.7,1247.6,18.79185216]
[1672998841882,6.21347301,1247.7,1247.6,17.3710477]
[1672998842408,6.21347301,1247.7,1247.6,19.17273377]
[1672998843458,3.00567301,1247.7,1247.6,19.17273377]
[1672998843774,6.21347301,1247.7,1247.6,17.3710477]
[1672998844724,3.00567301,1247.7,1247.6,17.3710477]
[1672998845144,6.21347301,1247.7,1247.6,17.3710477]
[1672998845350,3.00567301,1247.7,1247.6,17.3710477]
[1672998845666,6.21347301,1247.7,1247.6,17.3710477]
[1672998847559,3.00567301,1247.7,1247.6,17.3710477]
[1672998847771,6.21347301,1247.7,1247.6,17.3710477]
[1672998847974,6.21347301,1247.7,1247.6,16.76881126]
[1672998851761,3.00567301,1247.7,1247.6,16.76881126]
[1672998851973,6.21347301,1247.7,1247.6,16.76881126]
[1672998853863,3.00567301,1247.7,1247.6,16.76881126]
[1672998854182,6.21347301,1247.7,1247.6,16.76881126]
[1672998856065,3.00567301,1247.7,1247.6,16.76881126]
[1672998856277,6.21347301,1247.7,1247.6,16.76881126]
[1672998856594,3.00567301,1247.7,1247.6,16.76881126]
[1672998857222,6.21347301,1247.7,1247.6,16.76881126]
[1672998857642,3.00567301,1247.7,1247.6,16.76881126]
[1672998857853,6.21347301,1247.7,1247.6,16.76881126]
[1672998858169,3.00567301,1247.7,1247.6,16.76881126]
[1672998858483,6.21347301,1247.7,1247.6,16.76881126]
[1672998859745,3.00567301,1247.7,1247.6,16.76881126]
[1672998859958,6.21347301,1247.7,1247.6,16.76881126]
[1672998860377,3.2078,1247.7,1247.6,16.76881126]
[1672998860580,6.2125488,1247.7,1247.6,16.76881126]
[1672998861007,3.0047488,1247.7,1247.6,16.76881126]
[1672998861210,6.2125488,1247.7,1247.6,16.76881126]
[1672998862476,6.2125488,1247.7,1247.6,19.17229297]
[1672998863004,3.0047488,1247.7,1247.6,19.17229297]
[1672998863211,6.2125488,1247.7,1247.6,19.17229297]
[1672998865419,6.2125488,1247.7,1247.6,17.3710477]
[1672998866163,6.2125488,1247.7,1247.6,18.79186321]
[1672998866363,6.2125488,1247.7,1247.6,17.3710477]
[1672998868154,6.2125488,1247.7,1247.6,19.17293564]
[1672998868368,6.2125488,1247.7,1247.6,17.3710477]
[1672998868781,3.0047488,1247.7,1247.6,17.3710477]
[1672998868992,6.2125488,1247.7,1247.6,17.3710477]
[1672998869735,6.2125488,1247.7,1247.6,18.79186522]
[1672998870154,3.0047488,1247.7,1247.6,18.79186522]
[1672998871939,6.2125488,1247.7,1247.6,18.79186522]
[1672998875512,3.0047488,1247.7,1247.6,18.79186522]
[1672998876249,6.2125488,1247.7,1247.6,18.79186522]
[1672998876562,3.0047488,1247.7,1247.6,18.79186522]
[1672998876773,6.2125488,1247.7,1247.6,18.79186522]
[1672998876979,3.0047488,1247.7,1247.6,18.79186522]
[1672998877186,6.2125488,1247.7,1247.6,18.79186522]
[1672998877499,3.0047488,1247.7,1247.6,18.79186522]
[1672998877717,6.2125488,1247.7,1247.6,18.79186522]
[1672998878234,3.0047488,1247.7,1247.6,18.79186522]
[1672998878453,6.2125488,1247.7,1247.6,18.79186522]
[1672998878655,6.2125488,1247.7,1247.6,17.3710477]
[1672998879291,3.0047488,1247.7,1247.6,17.3710477]
[1672998879502,6.2125488,1247.7,1247.6,17.3710477]
[1672998880024,3.0047488,1247.7,1247.6,17.3710477]
[1672998880556,6.2125488,1247.7,1247.6,17.3710477]
[1672998882444,3.0047488,1247.7,1247.6,17.3710477]
[1672998882655,6.2125488,1247.7,1247.6,17.3710477]
[1672998883813,3.0047488,1247.7,1247.6,17.3710477]
[1672998884126,6.2125488,1247.7,1247.6,17.3710477]
[1672998884441,3.0047488,1247.7,1247.6,17.3710477]
[1672998884655,6.2125488,1247.7,1247.6,17.3710477]
[1672998885070,3.0047488,1247.7,1247.6,17.3710477]
[1672998885281,6.2125488,1247.7,1247.6,17.3710477]
[1672998885700,6.2125488,1247.7,1247.6,18.79186663]
[1672998886856,3.0047488,1247.7,1247.6,18.79186663]
[1672998890322,6.2125488,1247.7,1247.6,18.79186663]
[1672998890534,3.0047488,1247.7,1247.6,18.79186663]
[1672998890748,6.2125488,1247.7,1247.6,18.79186663]
[1672998891588,3.0047488,1247.7,1247.6,18.79186663]
[1672998892109,6.2125488,1247.7,1247.6,18.79186663]
[1672998892428,3.0047488,1247.7,1247.6,18.79186663]
[1672998892640,6.2125488,1247.7,1247.6,18.79186663]
[1672998893689,3.0047488,1247.7,1247.6,18.79186663]
[1672998893894,6.2125488,1247.7,1247.6,18.79186663]
[1672998894637,3.0047488,1247.7,1247.6,18.79186663]
[1672998895164,6.2125488,1247.7,1247.6,18.79186663]
[1672998895790,3.0047488,1247.7,1247.6,18.79186663]
[1672998896004,6.2125488,1247.7,1247.6,18.79186663]
[1672998902203,3.0047488,1247.7,1247.6,18.79186663]
[1672998902414,6.2125488,1247.7,1247.6,18.79186663]
[1672998902833,3.0047488,1247.7,1247.6,18.79186663]
[1672998903152,6.2125488,1247.7,1247.6,18.79186663]
[1672998906202,3.0047488,1247.7,1247.6,18.79186663]
[1672998906514,6.2125488,1247.7,1247.6,18.79186663]
[1672998907564,3.2078,1247.7,1247.6,17.3710477]
[1672998907767,3.2078,1247.7,1247.6,19.17344715]
[1672998907979,3.2078,1247.7,1247.6,19.17349227]
[1672998911137,3.2078,1247.7,1247.6,18.79187877]
[1672998911138,6.21382079,1247.7,1247.6,18.79187877]
[1672998911344,3.2078,1247.7,1247.6,19.17329883]
[1672998912070,3.60364534,1247.8,1247.6,19.17329883]
[1672998912392,3.2078,1247.7,1247.6,19.17329883]
[1672998913025,6.21363747,1247.7,1247.6,19.17329883]
[1672998913446,3.2078,1247.7,1247.6,19.17329883]
[1672998913869,6.21356878,1247.7,1247.6,19.17329883]
[1672998914184,3.2078,1247.7,1247.6,19.17329883]
[1672998914387,3.2078,1247.7,1247.6,16.76981712]
[1672998915134,3.2078,1247.7,1247.6,19.17329883]
[1672998915759,3.60364534,1247.8,1247.6,19.17329883]
[1672998915970,3.2078,1247.7,1247.6,19.17329883]
[1672998916393,3.2078,1247.7,1247.6,16.76981712]
[1672998917656,3.60364534,1247.8,1247.6,16.76981712]
[1672998917965,3.60364534,1247.8,1247.7,1.20129734]
[1672998918176,6.81144534,1247.8,1247.7,1.20129734]
[1672998918903,3.60364534,1247.8,1247.7,1.20129734]
[1672998919117,6.81144534,1247.8,1247.7,1.20129734]
[1672998919440,3.60364534,1247.8,1247.7,1.20129734]
[1672998919862,6.81144534,1247.8,1247.7,1.20129734]
[1672998920807,3.60364534,1247.8,1247.7,1.20129734]
[1672998921433,6.81144534,1247.8,1247.7,1.20129734]
[1672998921960,3.60364534,1247.8,1247.7,1.20129734]
[1672998922173,6.81144534,1247.8,1247.7,1.20129734]
[1672998922800,3.60364534,1247.8,1247.7,1.20129734]
[1672998923114,6.81144534,1247.8,1247.7,1.20129734]
[1672998924059,3.60364534,1247.8,1247.7,1.20129734]
[1672998924375,6.81144534,1247.8,1247.7,1.20129734]
[1672998925955,3.60364534,1247.8,1247.7,1.20129734]
[1672998926271,6.81144534,1247.8,1247.7,1.20129734]
[1672998928478,3.60364534,1247.8,1247.7,1.20129734]
[1672998928687,6.81144534,1247.8,1247.7,1.20129734]
[1672998929211,6.81144534,1247.8,1247.7,1.1955599]
[1672998931209,3.60364534,1247.8,1247.7,1.1955599]
[1672998931524,6.81144534,1247.8,1247.7,1.1955599]
[1672998932782,7.41309731,1247.8,1247.6,14.96756599]
[1672998932986,3.60647892,1247.7,1247.6,14.96756599]
[1672998934463,6.81427892,1247.7,1247.6,14.96756599]
[1672998942242,6.80990159,1247.7,1247.6,14.96756599]
[1672998944448,3.60210159,1247.7,1247.6,14.96756599]
[1672998944773,6.80990159,1247.7,1247.6,14.96756599]
[1672998946555,3.60210159,1247.7,1247.6,14.96756599]
[1672998946758,6.80990159,1247.7,1247.6,14.96756599]
[1672998947394,3.60210159,1247.7,1247.6,14.96756599]
[1672998947603,6.80990159,1247.7,1247.6,14.96756599]
[1672998951812,3.60210159,1247.7,1247.6,14.96756599]
[1672998952131,6.80990159,1247.7,1247.6,14.96756599]
[1672998954657,3.60210159,1247.7,1247.6,14.96756599]
[1672998954866,6.80990159,1247.7,1247.6,14.96756599]
[1672998955707,3.60210159,1247.7,1247.6,14.96756599]
[1672998955920,6.80990159,1247.7,1247.6,14.96756599]
[1672998957391,3.60210159,1247.7,1247.6,14.96756599]
[1672998957603,6.80990159,1247.7,1247.6,14.96756599]
[1672998958647,3.2078,1247.7,1247.6,14.96756599]
[1672998959811,3.60210159,1247.8,1247.6,14.96756599]
[1672998960122,3.2078,1247.7,1247.6,14.96756599]
[1672998960336,3.60210159,1247.8,1247.6,14.96756599]
[1672998960544,3.2078,1247.7,1247.6,14.96756599]
[1672998960967,3.60210159,1247.8,1247.6,14.96756599]
[1672998961171,3.2078,1247.7,1247.6,14.96756599]
[1672998961388,3.2078,1247.7,1247.6,16.76981712]
[1672998962858,3.2078,1247.7,1247.6,14.96756599]
[1672998963383,7.8073989,1247.8,1247.6,14.96756599]
[1672998964009,3.2078,1247.7,1247.6,14.96756599]
[1672998964223,7.8073989,1247.8,1247.6,14.96756599]
[1672998964435,3.2078,1247.7,1247.6,14.96756599]
[1672998967589,7.8073989,1247.8,1247.6,14.96756599]
[1672998967901,3.2078,1247.7,1247.6,14.96756599]
[1672998968108,7.8073989,1247.8,1247.6,14.96756599]
[1672998968326,3.2078,1247.7,1247.6,14.96756599]
[1672998968637,7.8073989,1247.8,1247.6,14.96756599]
[1672998969058,3.2078,1247.7,1247.6,14.96756599]
[1672998969377,6.80990159,1247.7,1247.6,14.96756599]
[1672998971481,6.80990159,1247.7,1247.6,16.76981712]
[1672998971693,3.60210159,1247.7,1247.6,16.76981712]
[1672998972215,6.80990159,1247.7,1247.6,16.76981712]
[1672998972637,3.60210159,1247.7,1247.6,16.76981712]
[1672998973060,6.80990159,1247.7,1247.6,14.96756599]
[1672998973684,6.80990159,1247.7,1247.6,16.76981712]
[1672998974519,3.60210159,1247.7,1247.6,16.76981712]
[1672998974731,6.80990159,1247.7,1247.6,16.76981712]
[1672998975263,3.60210159,1247.7,1247.6,16.76981712]
[1672998976316,6.80990159,1247.7,1247.6,16.76981712]
[1672998976527,6.80990159,1247.7,1247.6,14.96756599]
[1672998977677,3.60210159,1247.7,1247.6,14.96756599]
[1672998978208,6.80990159,1247.7,1247.6,14.96756599]
[1672998978843,3.60210159,1247.7,1247.6,14.96756599]
[1672998979044,6.80990159,1247.7,1247.6,14.96756599]
[1672998979255,3.60210159,1247.7,1247.6,14.96756599]
[1672998979577,6.80990159,1247.7,1247.6,14.96756599]
[1672998980836,3.60210159,1247.7,1247.6,14.96756599]
[1672998981043,6.80990159,1247.7,1247.6,14.96756599]
[1672998981461,3.60210159,1247.7,1247.6,14.96756599]
[1672998981888,6.80990159,1247.7,1247.6,14.96756599]
[1672998982101,3.60210159,1247.7,1247.6,14.96756599]
[1672998982729,6.80990159,1247.7,1247.6,14.96756599]
[1672998987564,3.60210159,1247.7,1247.6,14.96756599]
[1672998988297,6.80990159,1247.7,1247.6,14.96756599]
[1672998990822,3.60210159,1247.7,1247.6,14.96756599]
[1672998991136,6.80990159,1247.7,1247.6,14.96756599]
[1672998991348,3.60210159,1247.7,1247.6,14.96756599]
[1672998991658,6.80990159,1247.7,1247.6,14.96756599]
[1672998992925,3.60210159,1247.7,1247.6,14.96756599]
[1672998993246,6.80990159,1247.7,1247.6,14.96756599]
[1672998995662,3.60210159,1247.7,1247.6,14.96756599]
[1672998996290,6.80990159,1247.7,1247.6,14.96756599]
[1672998996510,3.60210159,1247.7,1247.6,14.96756599]
[1672998996817,6.80990159,1247.7,1247.6,14.96756599]
[1672998998711,3.60210159,1247.7,1247.6,14.96756599]
[1672998999233,6.80990159,1247.7,1247.6,14.96756599]
[1672999000182,6.21352962,1247.7,1247.6,18.79183671]
[1672999001232,3.2078,1247.7,1247.6,18.79183671]
[1672999001440,6.21352962,1247.7,1247.6,18.79183671]
[1672999001756,6.21352962,1247.7,1247.6,17.3710477]
[1672999002808,6.21352962,1247.7,1247.6,25.3900477]
[1672999003223,6.21352962,1247.7,1247.6,27.18994075]
[1672999003652,3.00572962,1247.7,1247.6,27.18994075]
[1672999004064,6.21352962,1247.7,1247.6,27.18994075]
[1672999004487,3.00572962,1247.7,1247.6,27.18994075]
[1672999004697,6.21352962,1247.7,1247.6,27.18994075]
[1672999004912,3.00572962,1247.7,1247.6,27.18994075]
[1672999005236,3.2078,1247.7,1247.6,27.18994075]
[1672999005447,3.2078,1247.7,1247.6,27.18931996]
[1672999005656,3.2078,1247.7,1247.6,25.3900477]
[1672999005859,3.2078,1247.7,1247.6,27.18937747]
[1672999006392,3.00572962,1247.8,1247.6,27.18937747]
[1672999006605,6.21352962,1247.8,1247.6,27.18937747]
[1672999007129,3.00572962,1247.8,1247.6,27.18937747]
[1672999007330,6.21352962,1247.8,1247.6,27.18937747]
[1672999007655,3.00572962,1247.8,1247.6,27.18937747]
[1672999008072,6.21352962,1247.8,1247.6,27.18937747]
[1672999008280,6.21352962,1247.8,1247.7,1.79932977]
[1672999010066,3.00572962,1247.8,1247.7,1.79932977]
[1672999010480,3.2078,1247.8,1247.7,9.81832977]
[1672999010695,3.00572962,1247.9,1247.7,11.84310061]
[1672999010903,3.00572962,1247.9,1247.8,9.81653962]
[1672999011218,6.21352962,1248.0,1247.8,9.81653962]
[1672999011540,6.21352962,1248.0,1247.8,8.019]
[1672999013004,3.2078,1247.9,1247.8,8.019]
[1672999018370,3.00572962,1248.0,1247.8,8.019]
[1672999018586,3.2078,1247.9,1247.8,8.019]
[1672999022581,3.2078,1248.1,1247.8,10.42248171]
[1672999022893,3.2078,1248.1,1247.9,9.81326064]
[1672999023099,3.2078,1248.1,1247.9,8.019]
[1672999023432,3.2078,1248.1,1247.9,9.81326064]
[1672999023644,6.21352962,1248.1,1247.9,8.019]
[1672999024062,3.2078,1248.1,1247.9,8.019]
[1672999026084,6.21352962,1248.1,1247.9,8.019]
[1672999028191,3.2078,1248.0,1247.9,8.019]
[1672999029034,3.00572962,1248.1,1247.9,8.019]
[1672999029245,3.2078,1248.0,1247.9,8.019]
[1672999029456,3.00572962,1248.1,1247.9,8.019]
[1672999029672,3.2078,1248.0,1247.9,8.019]
[1672999031768,3.00572962,1248.1,1247.9,8.019]
[1672999032078,3.2078,1248.0,1247.9,8.019]
[1672999033450,3.00572962,1248.1,1247.9,8.019]
[1672999033650,3.2078,1248.0,1247.9,8.019]
[1672999033859,3.00572962,1248.1,1247.9,8.019]
[1672999034073,3.2078,1248.0,1247.9,8.019]
[1672999034623,3.00572962,1248.1,1247.9,8.019]
[1672999034814,3.2078,1248.0,1247.9,8.019]
[1672999037234,3.00572962,1248.1,1247.9,8.019]
[1672999041018,3.2078,1248.2,1247.9,8.019]
[1672999043760,3.2078,1248.1,1247.9,8.019]
[1672999044701,7.8073989,1248.3,1247.9,8.019]
[1672999044911,3.2078,1248.1,1247.9,8.019]
[1672999046805,11.0151989,1248.3,1247.9,13.019]
[1672999047430,11.0151989,1248.3,1247.9,16.2268]
[1672999050787,6.80990159,1248.3,1247.9,16.2268]
[1672999053958,6.20525099,1248.3,1248.2,8.019]
[1672999055838,2.99745099,1248.3,1248.2,8.019]
[1672999057831,2.96540613,1248.3,1248.2,8.019]
[1672999058048,2.70904723,1248.3,1248.2,18.47015976]
[1672999058470,0.02501196,1248.3,1248.2,18.47015976]
[1672999058683,3.60210159,1248.5,1248.2,18.47015976]
[1672999058896,3.60210159,1248.5,1248.4,8.019]
[1672999063202,3.57006186,1248.5,1248.4,18.49184217]
[1672999067503,3.2078,1249.0,1248.4,18.49184217]
[1672999067711,3.2078,1249.0,1248.8,8.019]
[1672999069598,3.2078,1249.0,1248.7,5.0]
[1672999069817,3.2078,1248.8,1248.7,13.019]
[1672999074755,3.2078,1249.0,1248.7,13.019]
[1672999084514,3.2078,1249.2,1248.9,13.019]
[1672999084827,3.2078,1249.4,1248.9,13.019]
[1672999085249,3.2078,1249.2,1248.9,13.019]
[1672999089773,3.2078,1249.0,1248.9,13.019]
[1672999090921,3.2078,1249.0,1248.9,5.0]
[1672999091558,3.2078,1249.0,1248.8,8.019]
[1672999091871,3.2078,1249.0,1248.7,7.97622666]
[1672999092184,3.2078,1248.8,1248.7,2.97622666]
[1672999092395,3.2078,1248.8,1248.7,2.94419463]
[1672999092606,3.2078,1248.8,1248.4,10.64301172]
[1672999092607,6.2078,1248.8,1248.4,10.64301172]
[1672999092815,3.2078,1248.5,1248.4,10.64301172]
[1672999093024,3.2078,1248.5,1248.3,9.804736]
[1672999099334,2.98507878,1248.7,1248.3,9.804736]
[1672999099535,3.2078,1248.4,1248.3,9.804736]
[1672999103747,2.98507878,1248.7,1248.3,9.804736]
[1672999103951,3.2078,1248.4,1248.3,9.804736]
[1672999108578,3.2078,1248.6,1248.3,9.804736]
[1672999110464,2.98507878,1248.7,1248.3,9.804736]
[1672999110781,3.2078,1248.6,1248.3,9.804736]
[1672999111198,2.98507878,1248.7,1248.3,9.804736]
[1672999111510,3.2078,1248.6,1248.3,9.804736]
[1672999114776,5.98507878,1248.8,1248.3,9.804736]
[1672999115091,3.2078,1248.6,1248.3,9.804736]
[1672999116768,2.98507878,1248.7,1248.3,9.804736]
[1672999117402,3.2078,1248.5,1248.3,9.804736]
[1672999117617,2.98507878,1248.7,1248.3,9.804736]
[1672999117925,3.2078,1248.5,1248.3,9.804736]
[1672999121720,2.98507878,1248.7,1248.3,9.804736]
[1672999121920,3.2078,1248.5,1248.3,9.804736]
[1672999122450,2.98507878,1248.7,1248.3,9.804736]
[1672999122661,3.2078,1248.5,1248.3,9.804736]
[1672999126546,3.2078,1248.5,1248.3,12.18571733]
[1672999126964,3.2078,1248.5,1248.3,9.804736]
[1672999127593,3.2078,1248.5,1248.3,1.785736]
[1672999128432,6.19287878,1248.5,1248.3,1.785736]
[1672999128853,3.2078,1248.4,1248.3,1.785736]
[1672999129066,3.2078,1248.4,1248.3,9.804736]
[1672999130329,3.2078,1248.4,1248.3,9.43898622]
[1672999130641,2.98507878,1248.5,1248.3,11.81996755]
[1672999130856,2.98507878,1248.5,1248.4,1.79841951]
[1672999131169,6.19287878,1248.5,1248.4,1.79841951]
[1672999134848,2.98507878,1248.5,1248.4,1.79841951]
[1672999135162,6.19287878,1248.5,1248.4,1.79841951]
[1672999137362,2.98507878,1248.5,1248.4,1.79841951]
[1672999137779,6.19287878,1248.5,1248.4,1.79841951]
[1672999139580,2.98507878,1248.5,1248.4,1.79841951]
[1672999139895,6.19287878,1248.5,1248.4,1.79841951]
[1672999144720,2.98507878,1248.5,1248.4,1.79841951]
[1672999144937,6.19287878,1248.5,1248.4,1.79841951]
[1672999145471,2.98507878,1248.5,1248.4,1.79841951]
[1672999145671,6.19287878,1248.5,1248.4,1.79841951]
[1672999145876,2.98507878,1248.5,1248.4,1.79841951]
[1672999146091,6.19287878,1248.5,1248.4,4.17940084]
[1672999146303,6.19287878,1248.5,1248.4,1.79841951]
[1672999150096,6.19287878,1248.5,1248.4,4.17940084]
[1672999151664,6.19287878,1248.5,1248.4,1.79841951]
[1672999152512,6.21014292,1248.5,1248.4,1.79841951]
[1672999158290,3.2078,1248.5,1248.4,1.79841951]
[1672999159028,3.58209454,1248.6,1248.4,1.79841951]
[1672999159245,6.21057954,1248.5,1248.4,1.79841951]
[1672999159451,6.21057954,1248.5,1248.4,4.17940084]
[1672999159662,6.21057954,1248.5,1248.4,4.17930954]
[1672999159869,6.21057954,1248.5,1248.4,1.79832821]
[1672999162498,6.21057954,1248.5,1248.4,4.17930954]
[1672999163123,6.21057954,1248.5,1248.4,1.79832821]
[1672999164387,6.21057954,1248.5,1248.4,1.79137388]
[1672999165019,3.00277954,1248.5,1248.4,1.79137388]
[1672999165332,6.21057954,1248.5,1248.4,1.79137388]
[1672999165542,3.00277954,1248.5,1248.4,1.79137388]
[1672999165745,6.21057954,1248.5,1248.4,1.79137388]
[1672999167016,3.00277954,1248.5,1248.4,1.79137388]
[1672999167224,6.21057954,1248.5,1248.4,1.79137388]
[1672999168801,3.00277954,1248.5,1248.4,1.79137388]
[1672999169006,6.21057954,1248.5,1248.4,1.79137388]
[1672999169750,3.00277954,1248.5,1248.4,1.79137388]
[1672999169957,6.21057954,1248.5,1248.4,1.79137388]
[1672999170590,9.79267408,1248.5,1248.4,1.79137388]
[1672999171742,6.21057954,1248.5,1248.4,1.79137388]
[1672999172159,9.79267408,1248.5,1248.4,1.79137388]
[1672999172371,6.21057954,1248.5,1248.4,1.79137388]
[1672999173943,3.00277954,1248.5,1248.4,1.79137388]
[1672999174266,6.21057954,1248.5,1248.4,1.79137388]
[1672999174583,9.79267408,1248.5,1248.4,1.79137388]
[1672999176580,6.58487408,1248.5,1248.4,1.79137388]
[1672999176792,9.79267408,1248.5,1248.4,1.79137388]
[1672999177009,6.58487408,1248.5,1248.4,1.79137388]
[1672999177208,9.79267408,1248.5,1248.4,1.79137388]
[1672999181415,6.58487408,1248.5,1248.4,1.79137388]
[1672999181625,9.79267408,1248.5,1248.4,1.79137388]
[1672999183521,6.58487408,1248.5,1248.4,1.79137388]
[1672999183731,9.79267408,1248.5,1248.4,1.79137388]
[1672999186462,6.21057954,1248.5,1248.4,1.79137388]
[1672999186881,3.00277954,1248.5,1248.4,1.79137388]
[1672999187189,6.21057954,1248.5,1248.4,1.79137388]
[1672999189091,9.79267408,1248.5,1248.4,1.79137388]
[1672999190336,6.58487408,1248.5,1248.4,1.79137388]
[1672999190553,9.79267408,1248.5,1248.4,1.79137388]
[1672999190874,6.21057954,1248.5,1248.4,1.79137388]
[1672999191397,6.58487408,1248.5,1248.4,1.79137388]
[1672999191600,9.79267408,1248.5,1248.4,1.79137388]
[1672999192443,6.58487408,1248.5,1248.4,1.79137388]
[1672999192653,9.79267408,1248.5,1248.4,1.79137388]
[1672999202225,10.38968983,1248.5,1248.4,1.55107591]
[1672999202534,14.22957954,1248.5,1248.4,1.55107591]
[1672999202746,18.434002,1248.5,1248.4,1.55107591]
[1672999203705,17.8317872,1248.5,1248.4,1.55107591]
[1672999203908,9.8127872,1248.5,1248.4,1.55107591]
[1672999204118,6.21057954,1248.5,1248.4,1.55107591]
[1672999204542,9.8127872,1248.5,1248.4,1.55107591]
[1672999211266,14.01720966,1248.5,1248.4,1.55107591]
[1672999214631,9.8127872,1248.5,1248.4,2.75013368]
[1672999214949,9.8127872,1248.5,1248.4,1.55107591]
[1672999216949,6.6049872,1248.5,1248.4,1.55107591]
[1672999217160,9.8127872,1248.5,1248.4,2.75013368]
[1672999219155,9.8127872,1248.5,1248.4,1.55107591]
[1672999220833,6.6049872,1248.5,1248.4,1.55107591]
[1672999221039,9.8127872,1248.5,1248.4,1.55107591]
[1672999224415,14.01720966,1248.5,1248.4,1.55107591]
[1672999225040,9.8127872,1248.5,1248.4,1.55107591]
[1672999226727,6.6049872,1248.5,1248.4,1.55107591]
[1672999227039,9.8127872,1248.5,1248.4,1.55107591]
[1672999227249,14.01720966,1248.5,1248.4,1.55107591]
[1672999228613,10.415002,1248.5,1248.4,1.55107591]
[1672999235443,7.207202,1248.5,1248.4,1.55107591]
[1672999235649,10.415002,1248.5,1248.4,1.55107591]
[1672999236294,7.207202,1248.5,1248.4,1.55107591]
[1672999236602,10.415002,1248.5,1248.4,1.55107591]
[1672999237228,7.207202,1248.5,1248.4,1.55107591]
[1672999237444,10.415002,1248.5,1248.4,1.55107591]
[1672999238183,15.19112805,1248.5,1248.4,1.55107591]
[1672999238391,10.415002,1248.5,1248.4,1.55107591]
[1672999243021,7.207202,1248.5,1248.4,1.55107591]
[1672999243235,10.415002,1248.5,1248.4,1.55107591]
[1672999244491,7.207202,1248.5,1248.4,1.55107591]
[1672999244707,10.415002,1248.5,1248.4,1.55107591]
[1672999255748,7.207202,1248.5,1248.4,1.55107591]
[1672999255958,10.415002,1248.5,1248.4,1.55107591]
[1672999256265,7.207202,1248.5,1248.4,1.55107591]
[1672999256476,10.415002,1248.5,1248.4,1.55107591]
[1672999257315,7.207202,1248.5,1248.4,1.55107591]
[1672999257527,10.415002,1248.5,1248.4,1.55107591]
[1672999257948,7.207202,1248.5,1248.4,1.55107591]
[1672999258160,10.415002,1248.5,1248.4,1.55107591]
[1672999259001,9.81388003,1248.5,1248.4,1.55107591]
[1672999259525,10.415002,1248.5,1248.4,1.55107591]
[1672999260477,7.207202,1248.5,1248.4,1.55107591]
[1672999260688,10.415002,1248.5,1248.4,1.55107591]
[1672999261950,18.434002,1248.5,1248.4,1.55107591]
[1672999262162,23.21012805,1248.5,1248.4,1.55107591]
[1672999262690,18.434002,1248.5,1248.4,1.55107591]
[1672999263003,23.21012805,1248.5,1248.4,1.55107591]
[1672999263635,20.00232805,1248.5,1248.4,1.55107591]
[1672999263845,23.21012805,1248.5,1248.4,1.55107591]
[1672999264156,23.21049033,1248.5,1248.4,1.55107591]
[1672999264576,19.00570559,1248.5,1248.4,1.55107591]
[1672999265940,15.79790559,1248.5,1248.4,1.55107591]
[1672999266261,19.00570559,1248.5,1248.4,1.55107591]
[1672999274148,21.17104739,1248.5,1248.4,1.55107591]
[1672999274365,24.37884739,1248.5,1248.4,1.55107591]
[1672999275100,21.17104739,1248.5,1248.4,1.55107591]
[1672999275301,24.37884739,1248.5,1248.4,1.55107591]
[1672999276254,21.37606785,1248.5,1248.2,1.19905777]
[1672999276453,6.81238474,1248.3,1248.2,1.19905777]
[1672999276660,3.60458474,1248.3,1248.2,1.19905777]
[1672999277299,6.81238474,1248.3,1248.2,1.19905777]
[1672999277924,3.60458474,1248.3,1248.2,1.19905777]
[1672999278141,6.81238474,1248.3,1248.2,1.19905777]
[1672999279193,3.60458474,1248.3,1248.2,1.19905777]
[1672999279402,6.81238474,1248.3,1248.2,1.19905777]
[1672999280139,3.60458474,1248.3,1248.2,1.19905777]
[1672999280349,6.81238474,1248.3,1248.2,1.19905777]
[1672999280556,3.60458474,1248.3,1248.2,1.19905777]
[1672999280868,6.81238474,1248.3,1248.2,1.19905777]
[1672999281399,6.81238474,1248.3,1248.2,1.19205571]
[1672999286865,3.60458474,1248.3,1248.2,1.19205571]
[1672999287075,6.81238474,1248.3,1248.2,1.19205571]
[1672999292019,3.60458474,1248.3,1248.2,1.19205571]
[1672999292221,6.81238474,1248.3,1248.2,1.19205571]
[1672999292539,3.60458474,1248.3,1248.2,1.19205571]
[1672999292756,6.81238474,1248.3,1248.2,1.19205571]
[1672999295695,3.60458474,1248.3,1248.2,1.19205571]
[1672999295905,6.81238474,1248.3,1248.2,1.19205571]
[1672999296429,6.81238474,1248.3,1248.2,2.99103612]
[1672999296642,6.81238474,1248.3,1248.2,1.19205571]
[1672999297165,6.81238474,1248.3,1248.2,2.99103612]
[1672999297375,6.81238474,1248.3,1248.2,1.19205571]
[1672999300634,3.60458474,1248.3,1248.2,1.19205571]
[1672999300946,6.81238474,1248.3,1248.2,1.19205571]
[1672999304410,3.60458474,1248.3,1248.2,1.19205571]
[1672999304626,6.81238474,1248.3,1248.2,1.19205571]
[1672999309144,11.0177336,1248.3,1248.2,1.19205571]
[1672999309357,11.0177336,1248.3,1248.0,6.79898041]
[1672999309565,3.2078,1248.1,1248.0,6.79898041]
[1672999312293,6.21193579,1248.1,1248.0,6.79898041]
[1672999312508,3.00413579,1248.1,1248.0,6.79898041]
[1672999312723,6.21193579,1248.1,1248.0,6.79898041]
[1672999313657,3.00413579,1248.1,1248.0,6.79898041]
[1672999313868,6.21193579,1248.1,1248.0,6.79898041]
[1672999315030,3.00413579,1248.1,1248.0,6.79898041]
[1672999315235,6.21193579,1248.1,1248.0,6.79898041]
[1672999315445,3.00413579,1248.1,1248.0,6.79898041]
[1672999315656,6.21193579,1248.1,1248.0,6.79898041]
[1672999317339,3.00413579,1248.1,1248.0,6.79898041]
[1672999317544,6.21193579,1248.1,1248.0,6.79898041]
[1672999317970,3.00413579,1248.1,1248.0,6.79898041]
[1672999318818,6.21193579,1248.1,1248.0,6.79898041]
[1672999319344,3.00413579,1248.1,1248.0,6.79898041]
[1672999319654,6.21193579,1248.1,1248.0,6.79898041]
[1672999320494,3.00413579,1248.1,1248.0,6.79898041]
[1672999320701,6.21193579,1248.1,1248.0,6.79898041]
[1672999323858,6.21193579,1248.1,1248.0,9.17996174]
[1672999324701,6.21193579,1248.1,1248.0,6.79898041]
[1672999328378,6.21049775,1248.1,1248.0,6.79898041]
[1672999329638,6.21049775,1248.1,1248.0,1.79898041]
[1672999331006,6.21049775,1248.1,1248.0,6.79898041]
[1672999332685,3.00269775,1248.1,1248.0,6.79898041]
[1672999333209,6.21049775,1248.1,1248.0,6.79898041]